fUSD/lending_fUSD_20240619
["ID","MTS","AMOUNT","RATE_DAILY","PERIOD"]
[329874333,1718779853256,-3216.93084,0.00013898,2]
[329874334,1718779853266,-1060.41,0.00013899,2]
[329874335,1718779853275,-388.78277645,0.000139,2]
[329874336,1718779853285,-250000.0,0.000139,2]
[329874337,1718779853293,-151.0,0.000139,2]
[329874338,1718779853303,-151.0,0.000139,2]
[329874339,1718779853312,-1000.0,0.00013905,2]
[329874340,1718779853322,-200.0,0.00013943,2]
[329874341,1718779853332,-500.0,0.00013943,2]
[329874342,1718779853341,-200.0,0.00013943,2]
[329874343,1718779853351,-370.09329007,0.00013948,2]
[329874344,1718779853361,-212.83795322,0.00013948,2]
[329874345,1718779853370,-1882.28858393,0.00013948,2]
[329874346,1718779853379,-974.43706032,0.00013949,2]
[329874347,1718779853389,-1000.0,0.00013949,2]
[329874348,1718779853398,-1000.0,0.00013949,2]
[329874349,1718779853406,-1000.0,0.00013949,2]
[329874350,1718779853415,-1000.0,0.00013949,2]
[329874351,1718779853426,-1000.0,0.00013949,2]
[329874352,1718779853436,-1000.0,0.00013949,2]
[329874353,1718779853446,-1000.0,0.00013949,2]
[329874354,1718779853456,-1000.0,0.00013949,2]
[329874355,1718779853465,-1000.0,0.00013949,2]
[329874356,1718779853474,-1000.0,0.00013949,2]
[329874357,1718779853484,-1000.0,0.00013949,2]
[329874358,1718779853494,-1000.0,0.00013949,2]
[329874359,1718779853504,-1000.0,0.00013949,2]
[329874360,1718779853513,-1000.0,0.00013949,2]
[329874361,1718779853522,-1000.0,0.00013949,2]
[329874362,1718779853531,-1000.0,0.00013949,2]
[329874363,1718779853540,-1000.0,0.00013949,2]
[329874364,1718779853550,-1000.0,0.00013949,2]
[329874365,1718779853559,-1000.0,0.00013949,2]
[329874366,1718779853569,-1000.0,0.00013949,2]
[329874367,1718779853578,-1000.0,0.00013949,2]
[329874368,1718779853588,-1000.0,0.00013949,2]
[329874369,1718779853597,-1000.0,0.00013949,2]
[329874370,1718779853606,-1000.0,0.00013949,2]
[329874371,1718779853615,-1143.19256352,0.00013949,2]
[329874372,1718779853625,-151.0,0.00013949,2]
[329874373,1718779853634,-151.0,0.00013949,2]
[329874374,1718779853644,-151.0,0.00013949,2]
[329874375,1718779853653,-350.316487,0.00013949,2]
[329874376,1718779853662,-350.316487,0.00013949,2]
[329874377,1718779853671,-3216.93084,0.00013949,2]
[329874378,1718779853681,-3216.93084,0.00013949,2]
[329874379,1718779853690,-5435.9918425,0.00013953,2]
[329874380,1718779853699,-475.6978813,0.00013962,2]
[329874381,1718779853709,-264.1328159,0.0001397,2]
[329874382,1718779853718,-1060.41,0.0001397,2]
[329874383,1718779853729,-182383.43345769,0.00013971,2]
[329874384,1718779853740,-1060.41,0.00013971,2]
[329874385,1718779853749,-1060.41,0.00013971,2]
[329874386,1718779853758,-1060.41,0.00013971,2]
[329874387,1718779853767,-1060.41,0.00013971,2]
[329874388,1718779853777,-1060.41,0.00013971,2]
[329874389,1718779853786,-299.271919,0.00013971,2]
[329874390,1718779853796,-500.0,0.00013972,2]
[329874391,1718779853805,-153.93723309,0.00013972,2]
[329874392,1718779853814,-500.0,0.00013972,2]
[329874393,1718779853823,-500.0,0.00013972,2]
[329874394,1718779853833,-500.0,0.00013972,2]
[329874395,1718779853842,-500.0,0.00013972,2]
[329874396,1718779853851,-500.0,0.00013972,2]
[329874397,1718779853860,-1550.81,0.00013972,2]
[329874398,1718779853870,-500.0,0.00013972,2]
[329874399,1718779853879,-785.99,0.00013972,2]
[329874400,1718779853888,-640.6,0.00013972,2]
[329874401,1718779853898,-500.0,0.00013972,2]
[329874402,1718779853907,-527.95,0.00013972,2]
[329874403,1718779853916,-500.0,0.00013972,2]
[329874404,1718779853925,-500.0,0.00013972,2]
[329874405,1718779853934,-612.84,0.00013972,2]
[329874406,1718779853944,-737.34,0.00013972,2]
[329874407,1718779853953,-867.8,0.00013972,2]
[329874408,1718779853963,-500.0,0.00013972,2]
[329874409,1718779853972,-1429.21,0.00013972,2]
[329874410,1718779853981,-500.0,0.00013972,2]
[329874411,1718779853991,-500.0,0.00013972,2]
[329874412,1718779853999,-500.0,0.00013972,2]
[329874413,1718779854008,-500.0,0.00013972,2]
[329874414,1718779854018,-500.0,0.00013972,2]
[329874415,1718779854027,-500.0,0.00013972,2]
[329874416,1718779854036,-500.0,0.00013972,2]
[329874417,1718779854044,-500.0,0.00013972,2]
[329874418,1718779854054,-500.0,0.00013972,2]
[329874419,1718779854063,-500.0,0.00013972,2]
[329874420,1718779854073,-837.19,0.00013972,2]
[329874421,1718779854082,-500.0,0.00013972,2]
[329874422,1718779854091,-167.04443009,0.00013972,2]
[329874423,1718779854100,-623.23,0.00013972,2]
[329874424,1718779854109,-863.83,0.00013972,2]
[329874425,1718779854118,-500.0,0.00013972,2]
[329874426,1718779854127,-500.0,0.00013972,2]
[329874427,1718779854137,-500.0,0.00013972,2]
[329874428,1718779854146,-500.0,0.00013972,2]
[329874429,1718779854155,-519.59,0.00013972,2]
[329874430,1718779854164,-500.0,0.00013972,2]
[329874431,1718779854174,-500.0,0.00013972,2]
[329874432,1718779854183,-500.0,0.00013972,2]
[329874433,1718779854199,-500.0,0.00013972,2]
[329874434,1718779854208,-1527.0,0.00013972,2]
[329874435,1718779854218,-500.0,0.00013972,2]
[329874436,1718779854232,-500.0,0.00013972,2]
[329874437,1718779854248,-1066.46,0.00013972,2]
[329874438,1718779854263,-500.0,0.00013972,2]
[329874439,1718779854277,-527.47,0.00013972,2]
[329874440,1718779854292,-500.0,0.00013972,2]
[329874441,1718779854306,-1513.98,0.00013972,2]
[329874442,1718779854321,-500.0,0.00013972,2]
[329874443,1718779854335,-500.0,0.00013972,2]
[329874444,1718779854351,-500.0,0.00013972,2]
[329874445,1718779854367,-500.0,0.00013972,2]
[329874446,1718779854381,-500.0,0.00013972,2]
[329874447,1718779854394,-500.0,0.00013972,2]
[329874448,1718779854410,-562.29,0.00013972,2]
[329874449,1718779854424,-1243.96,0.00013972,2]
[329874450,1718779854438,-151.0,0.00013972,2]
[329874451,1718779854450,-151.0,0.00013972,2]
[329874452,1718779854463,-301.725056,0.00013972,2]
[329874453,1718779854478,-500.0,0.00013972,2]
[329874454,1718779854493,-944.51,0.00013972,2]
[329874455,1718779854506,-1007.1,0.00013972,2]
[329874456,1718779854521,-500.0,0.00013972,2]
[329874457,1718779854536,-500.0,0.00013972,2]
[329874458,1718779854547,-557.06,0.00013972,2]
[329874459,1718779854559,-500.0,0.00013972,2]
[329874460,1718779854573,-500.0,0.00013972,2]
[329874461,1718779854588,-931.27,0.00013972,2]
[329874462,1718779854600,-500.0,0.00013972,2]
[329874463,1718779854613,-500.0,0.00013972,2]
[329874464,1718779854627,-500.0,0.00013972,2]
[329874465,1718779854641,-242.23438228,0.00013972,2]
[329874466,1718779854653,-1259.3,0.00013972,2]
[329874467,1718779854664,-500.0,0.00013972,2]
[329874468,1718779854676,-500.0,0.00013972,2]
[329874469,1718779854688,-1146.44,0.00013972,2]
[329874470,1718779854700,-500.0,0.00013972,2]
[329874471,1718779854712,-500.0,0.00013972,2]
[329874472,1718779854724,-500.0,0.00013972,2]
[329874473,1718779854736,-634.62776111,0.00013972,2]
[329874474,1718779854755,-500.0,0.00013972,2]
[329874475,1718779854767,-500.0,0.00013972,2]
[329874476,1718779854779,-500.0,0.00013972,2]
[329874477,1718779854792,-500.0,0.00013972,2]
[329874478,1718779854805,-836.05,0.00013972,2]
[329874479,1718779854818,-500.0,0.00013972,2]
[329874480,1718779854830,-500.0,0.00013972,2]
[329874481,1718779854843,-513.19,0.00013972,2]
[329874482,1718779854855,-500.0,0.00013972,2]
[329874483,1718779854867,-500.0,0.00013972,2]
[329874484,1718779854880,-500.0,0.00013972,2]
[329874485,1718779854892,-971.26,0.00013972,2]
[329874486,1718779854905,-500.0,0.00013972,2]
[329874487,1718779854918,-500.0,0.00013972,2]
[329874488,1718779854930,-500.0,0.00013972,2]
[329874489,1718779854942,-537.71,0.00013972,2]
[329874490,1718779854955,-500.0,0.00013972,2]
[329874491,1718779854967,-500.0,0.00013972,2]
[329874492,1718779854980,-1414.93,0.00013972,2]
[329874493,1718779854992,-1354.94,0.00013972,2]
[329874494,1718779855005,-500.0,0.00013972,2]
[329874495,1718779855017,-551.18,0.00013972,2]
[329874496,1718779855030,-947.85,0.00013972,2]
[329874497,1718779855043,-500.0,0.00013972,2]
[329874498,1718779855055,-500.0,0.00013972,2]
[329874499,1718779855068,-1226.95,0.00013972,2]
[329874500,1718779855080,-638.86492325,0.00013972,2]
[329874501,1718779855093,-1080.58,0.00013972,2]
[329874502,1718779855105,-500.0,0.00013972,2]
[329874503,1718779855118,-500.0,0.00013972,2]
[329874504,1718779855131,-366.67780846,0.00013972,2]
[329874505,1718779855143,-500.0,0.00013972,2]
[329874506,1718779855156,-500.0,0.00013972,2]
[329874507,1718779855168,-500.0,0.00013972,2]
[329874508,1718779855181,-1214.33,0.00013972,2]
[329874509,1718779855195,-893.64,0.00013972,2]
[329874510,1718779855207,-563.19458462,0.00013972,2]
[329874511,1718779855219,-500.0,0.00013972,2]
[329874512,1718779855232,-868.62,0.00013972,2]
[329874513,1718779855244,-500.0,0.00013972,2]
[329874514,1718779855256,-500.0,0.00013972,2]
[329874515,1718779855270,-589.65,0.00013972,2]
[329874516,1718779855282,-1194.02,0.00013972,2]
[329874517,1718779855294,-1008.44,0.00013972,2]
[329874518,1718779855307,-500.0,0.00013972,2]
[329874519,1718779855319,-554.05,0.00013972,2]
[329874520,1718779855333,-500.0,0.00013972,2]
[329874521,1718779855345,-1392.85,0.00013972,2]
[329874522,1718779855358,-500.0,0.00013972,2]
[329874523,1718779855370,-885.88,0.00013972,2]
[329874524,1718779855382,-500.0,0.00013972,2]
[329874525,1718779855394,-1179.08,0.00013972,2]
[329874526,1718779855406,-500.0,0.00013972,2]
[329874527,1718779855418,-500.0,0.00013972,2]
[329874528,1718779855430,-500.0,0.00013972,2]
[329874529,1718779855442,-631.87,0.00013972,2]
[329874530,1718779855454,-500.0,0.00013972,2]
[329874531,1718779855467,-500.0,0.00013972,2]
[329874532,1718779855479,-984.52,0.00013972,2]
[329874533,1718779855491,-500.0,0.00013972,2]
[329874534,1718779855503,-500.0,0.00013972,2]
[329874535,1718779855516,-733.82,0.00013972,2]
[329874536,1718779855528,-500.0,0.00013972,2]
[329874537,1718779855540,-500.0,0.00013972,2]
[329874538,1718779855552,-500.0,0.00013972,2]
[329874539,1718779855564,-500.0,0.00013972,2]
[329874540,1718779855576,-220.78782286,0.00013972,2]
[329874541,1718779855589,-500.0,0.00013972,2]
[329874542,1718779855602,-500.0,0.00013972,2]
[329874543,1718779855614,-326.69389576,0.00013972,2]
[329874544,1718779855627,-500.0,0.00013972,2]
[329874545,1718779855642,-500.0,0.00013972,2]
[329874546,1718779855654,-500.0,0.00013972,2]
[329874547,1718779855666,-500.0,0.00013972,2]
[329874548,1718779855678,-1485.65,0.00013972,2]
[329874549,1718779855691,-500.0,0.00013972,2]
[329874550,1718779855704,-500.0,0.00013972,2]
[329874551,1718779855716,-1936.83,0.00013972,2]
[329874552,1718779855729,-926.43,0.00013972,2]
[329874553,1718779855740,-500.0,0.00013972,2]
[329874554,1718779855752,-500.0,0.00013972,2]
[329874555,1718779855764,-1215.07,0.00013972,2]
[329874556,1718779855777,-1248.9,0.00013972,2]
[329874557,1718779855789,-500.0,0.00013972,2]
[329874558,1718779855801,-1309.81,0.00013972,2]
[329874559,1718779855814,-1062.93,0.00013972,2]
[329874560,1718779855826,-1935.0,0.00013972,2]
[329874561,1718779855839,-1888.76,0.00013972,2]
[329874562,1718779855852,-500.0,0.00013972,2]
[329874563,1718779855863,-412.04419255,0.00013972,2]
[329874564,1718779855875,-500.0,0.00013972,2]
[329874565,1718779855888,-500.0,0.00013972,2]
[329874566,1718779855900,-500.0,0.00013972,2]
[329874567,1718779855912,-1452.92,0.00013972,2]
[329874568,1718779855925,-2266.9,0.00013972,2]
[329874569,1718779855937,-957.2,0.00013972,2]
[329874570,1718779855949,-151.0,0.00013972,2]
[329874571,1718779855961,-500.0,0.00013972,2]
[329874572,1718779855973,-210.704162,0.00013972,2]
[329874573,1718779855986,-500.0,0.00013972,2]
[329874574,1718779855998,-500.0,0.00013972,2]
[329874575,1718779856010,-500.0,0.00013972,2]
[329874576,1718779856022,-500.0,0.00013972,2]
[329874577,1718779856034,-2422.75,0.00013972,2]
[329874578,1718779856047,-151.0,0.00013972,2]
[329874579,1718779856059,-151.0,0.00013972,2]
[329874580,1718779856071,-183.839117,0.00013972,2]
[329874581,1718779856083,-803.08,0.00013972,2]
[329874582,1718779856095,-510.77547269,0.00013972,2]
[329874583,1718779856108,-500.0,0.00013972,2]
[329874584,1718779856120,-1308.82,0.00013972,2]
[329874585,1718779856133,-513.6,0.00013972,2]
[329874586,1718779856145,-1552.07,0.00013972,2]
[329874587,1718779856160,-500.0,0.00013972,2]
[329874588,1718779856173,-1574.93,0.00013972,2]
[329874589,1718779856186,-1499.59,0.00013972,2]
[329874590,1718779856201,-718.08,0.00013972,2]
[329874591,1718779856213,-500.0,0.00013972,2]
[329874592,1718779856226,-519.79082604,0.00013972,2]
[329874593,1718779856239,-500.0,0.00013972,2]
[329874594,1718779856252,-556.58,0.00013972,2]
[329874595,1718779856264,-1628.92,0.00013972,2]
[329874596,1718779856277,-563.37,0.00013972,2]
[329874597,1718779856290,-500.0,0.00013972,2]
[329874598,1718779856302,-496.22087055,0.00013972,2]
[329874599,1718779856315,-500.0,0.00013972,2]
[329874600,1718779856327,-1045.33,0.00013972,2]
[329874601,1718779856339,-500.0,0.00013972,2]
[329874602,1718779856352,-602.78,0.00013972,2]
[329874603,1718779856363,-514.12,0.00013972,2]
[329874604,1718779856375,-869.87,0.00013972,2]
[329874605,1718779856389,-562.37,0.00013972,2]
[329874606,1718779856401,-1120.82,0.00013972,2]
[329874607,1718779856412,-513.1079719,0.00013972,2]
[329874608,1718779856424,-2059.46,0.00013972,2]
[329874609,1718779856436,-511.14521995,0.00013972,2]
[329874610,1718779856448,-1554.47,0.00013972,2]
[329874611,1718779856461,-500.0,0.00013972,2]
[329874612,1718779856473,-500.0,0.00013972,2]
[329874613,1718779856484,-500.0,0.00013972,2]
[329874614,1718779856496,-2421.28,0.00013972,2]
[329874615,1718779856508,-1112.41,0.00013972,2]
[329874616,1718779856520,-1565.23,0.00013972,2]
[329874617,1718779856532,-1215.58,0.00013972,2]
[329874618,1718779856544,-1601.5,0.00013972,2]
[329874619,1718779856556,-1345.02,0.00013972,2]
[329874620,1718779856568,-1181.2,0.00013972,2]
[329874621,1718779856580,-1876.5,0.00013972,2]
[329874622,1718779856592,-500.0,0.00013972,2]
[329874623,1718779856604,-740.09,0.00013972,2]
[329874624,1718779856616,-500.0,0.00013972,2]
[329874625,1718779856627,-1444.87,0.00013972,2]
[329874626,1718779856640,-500.0,0.00013972,2]
[329874627,1718779856652,-500.0,0.00013972,2]
[329874628,1718779856663,-769.9,0.00013972,2]
[329874629,1718779856675,-500.0,0.00013972,2]
[329874630,1718779856687,-531.04,0.00013972,2]
[329874631,1718779856698,-151.0,0.00013972,2]
[329874632,1718779856709,-151.0,0.00013972,2]
[329874633,1718779856721,-151.0,0.00013972,2]
[329874634,1718779856732,-1480.48,0.00013972,2]
[329874635,1718779856744,-151.0,0.00013972,2]
[329874636,1718779856756,-597.34,0.00013972,2]
[329874637,1718779856767,-5000.0,0.00013972,2]
[329874638,1718779856779,-2006.74,0.00013972,2]
[329874639,1718779856791,-500.0,0.00013972,2]
[329874640,1718779856803,-896.58,0.00013972,2]
[329874641,1718779856814,-755.13,0.00013972,2]
[329874642,1718779856826,-500.0,0.00013972,2]
[329874643,1718779856839,-1211.85,0.00013972,2]
[329874644,1718779856851,-1921.87,0.00013972,2]
[329874645,1718779856863,-500.0,0.00013972,2]
[329874646,1718779856874,-2655.24,0.00013972,2]
[329874647,1718779856886,-736.66,0.00013972,2]
[329874648,1718779856896,-2625.91,0.00013972,2]
[329874649,1718779856905,-1346.52,0.00013972,2]
[329874650,1718779856917,-1087.11,0.00013972,2]
[329874651,1718779856926,-1153.79,0.00013972,2]
[329874652,1718779856935,-500.0,0.00013972,2]
[329874653,1718779856945,-794.29,0.00013972,2]
[329874654,1718779856955,-1296.64,0.00013972,2]
[329874655,1718779856964,-721.78,0.00013972,2]
[329874656,1718779856974,-1762.01,0.00013972,2]
[329874657,1718779856984,-947.58,0.00013972,2]
[329874658,1718779856993,-500.0,0.00013972,2]
[329874659,1718779857003,-1244.06,0.00013972,2]
[329874660,1718779857013,-938.37,0.00013972,2]
[329874661,1718779857022,-1159.14,0.00013972,2]
[329874662,1718779857031,-1089.07,0.00013972,2]
[329874663,1718779857041,-500.0,0.00013972,2]
[329874664,1718779857050,-1643.78,0.00013972,2]
[329874665,1718779857059,-1646.88,0.00013972,2]
[329874666,1718779857069,-500.0,0.00013972,2]
[329874667,1718779857079,-500.0,0.00013972,2]
[329874668,1718779857088,-500.0,0.00013972,2]
[329874669,1718779857098,-500.0,0.00013972,2]
[329874670,1718779857107,-782.04,0.00013972,2]
[329874671,1718779857116,-2353.44,0.00013972,2]
[329874672,1718779857126,-1312.3,0.00013972,2]
[329874673,1718779857137,-2223.27,0.00013972,2]
[329874674,1718779857146,-1498.15,0.00013972,2]
[329874675,1718779857156,-500.0,0.00013972,2]
[329874676,1718779857166,-500.0,0.00013972,2]
[329874677,1718779857692,-852.48,0.00013972,2]
[329874678,1718779857732,-2031.81,0.00013972,2]
[329874679,1718779857759,-500.0,0.00013972,2]
[329874680,1718779857770,-1019.91,0.00013972,2]
[329874681,1718779857779,-1039.23,0.00013972,2]
[329874682,1718779857789,-621.76,0.00013972,2]
[329874683,1718779857798,-1831.41,0.00013972,2]
[329874684,1718779857808,-627.58,0.00013972,2]
[329874685,1718779857817,-725.7,0.00013972,2]
[329874686,1718779857826,-500.0,0.00013972,2]
[329874687,1718779857836,-500.0,0.00013972,2]
[329874688,1718779857845,-1357.59,0.00013972,2]
[329874689,1718779857854,-1177.77,0.00013972,2]
[329874690,1718779857863,-2318.36,0.00013972,2]
[329874691,1718779857873,-707.75,0.00013972,2]
[329874692,1718779857882,-2319.65,0.00013972,2]
[329874693,1718779857891,-1018.78,0.00013972,2]
[329874694,1718779857900,-613.96,0.00013972,2]
[329874695,1718779857910,-500.0,0.00013972,2]
[329874696,1718779857919,-1718.38,0.00013972,2]
[329874697,1718779857928,-500.0,0.00013972,2]
[329874698,1718779857938,-1789.94,0.00013972,2]
[329874699,1718779857947,-1212.2,0.00013972,2]
[329874700,1718779857956,-500.0,0.00013972,2]
[329874701,1718779857965,-500.0,0.00013972,2]
[329874702,1718779857974,-936.58,0.00013972,2]
[329874703,1718779857983,-529.04,0.00013972,2]
[329874704,1718779857992,-612.94,0.00013972,2]
[329874705,1718779858002,-1789.06,0.00013972,2]
[329874706,1718779858012,-160.51833254,0.00013972,2]
[329874707,1718779858021,-966.89,0.00013972,2]
[329874708,1718779858030,-756.8,0.00013972,2]
[329874709,1718779858039,-1484.76,0.00013972,2]
[329874710,1718779858048,-500.0,0.00013972,2]
[329874711,1718779858058,-638.01,0.00013972,2]
[329874712,1718779858067,-1311.64,0.00013972,2]
[329874713,1718779858076,-1932.25,0.00013972,2]
[329874714,1718779858086,-1453.2,0.00013972,2]
[329874715,1718779858095,-723.94,0.00013972,2]
[329874716,1718779858104,-521.81,0.00013972,2]
[329874717,1718779858114,-500.0,0.00013972,2]
[329874718,1718779858124,-824.55,0.00013972,2]
[329874719,1718779858134,-955.06,0.00013972,2]
[329874720,1718779858143,-865.35,0.00013972,2]
[329874721,1718779858153,-693.75,0.00013972,2]
[329874722,1718779858163,-500.0,0.00013972,2]
[329874723,1718779858172,-2522.59,0.00013972,2]
[329874724,1718779858181,-753.74,0.00013972,2]
[329874725,1718779858195,-500.0,0.00013972,2]
[329874726,1718779858204,-1400.55,0.00013972,2]
[329874727,1718779858214,-543.39,0.00013972,2]
[329874728,1718779858222,-500.0,0.00013972,2]
[329874729,1718779858233,-1692.42,0.00013972,2]
[329874730,1718779858243,-1300.26,0.00013972,2]
[329874731,1718779858252,-500.0,0.00013972,2]
[329874732,1718779858263,-1125.65,0.00013972,2]
[329874733,1718779858274,-500.0,0.00013972,2]
[329874734,1718779858283,-500.0,0.00013972,2]
[329874735,1718779858293,-500.0,0.00013972,2]
[329874736,1718779858302,-637.19,0.00013972,2]
[329874737,1718779858311,-2286.19,0.00013972,2]
[329874738,1718779858321,-500.0,0.00013972,2]
[329874739,1718779858331,-500.0,0.00013972,2]
[329874740,1718779858341,-500.0,0.00013972,2]
[329874741,1718779858351,-500.0,0.00013972,2]
[329874742,1718779858361,-1218.31,0.00013972,2]
[329874743,1718779858370,-1980.41,0.00013972,2]
[329874744,1718779858379,-1104.13,0.00013972,2]
[329874745,1718779858389,-500.0,0.00013972,2]
[329874746,1718779858399,-500.0,0.00013972,2]
[329874747,1718779858408,-793.29,0.00013972,2]
[329874748,1718779858418,-500.0,0.00013972,2]
[329874749,1718779858428,-1592.56,0.00013972,2]
[329874750,1718779858438,-500.0,0.00013972,2]
[329874751,1718779858447,-539.85,0.00013972,2]
[329874752,1718779858457,-2927.57,0.00013972,2]
[329874753,1718779858466,-552.54,0.00013972,2]
[329874754,1718779858475,-500.0,0.00013972,2]
[329874755,1718779858486,-1557.9,0.00013972,2]
[329874756,1718779858495,-500.0,0.00013972,2]
[329874757,1718779858504,-500.0,0.00013972,2]
[329874758,1718779858514,-500.0,0.00013972,2]
[329874759,1718779858522,-2065.34,0.00013972,2]
[329874760,1718779858532,-2064.73,0.00013972,2]
[329874761,1718779858542,-522.63,0.00013972,2]
[329874762,1718779858551,-500.0,0.00013972,2]
[329874763,1718779858561,-2380.08,0.00013972,2]
[329874764,1718779858570,-1009.63,0.00013972,2]
[329874765,1718779858579,-151.0,0.00013972,2]
[329874766,1718779858589,-151.0,0.00013972,2]
[329874767,1718779858598,-2150.26,0.00013972,2]
[329874768,1718779858607,-151.0,0.00013972,2]
[329874769,1718779858617,-151.0,0.00013972,2]
[329874770,1718779858627,-500.0,0.00013972,2]
[329874771,1718779858638,-500.0,0.00013972,2]
[329874772,1718779858647,-2050.44,0.00013972,2]
[329874773,1718779858657,-500.0,0.00013972,2]
[329874774,1718779858667,-500.0,0.00013972,2]
[329874775,1718779858677,-1315.78,0.00013972,2]
[329874776,1718779858686,-500.0,0.00013972,2]
[329874777,1718779858696,-500.0,0.00013972,2]
[329874778,1718779858705,-744.96,0.00013972,2]
[329874779,1718779858715,-977.58,0.00013972,2]
[329874780,1718779858724,-500.0,0.00013972,2]
[329874781,1718779858734,-500.0,0.00013972,2]
[329874782,1718779858743,-1626.73,0.00013972,2]
[329874783,1718779858753,-1046.76,0.00013972,2]
[329874784,1718779858763,-516.29,0.00013972,2]
[329874785,1718779858772,-1019.22,0.00013972,2]
[329874786,1718779858782,-500.0,0.00013972,2]
[329874787,1718779858791,-2072.65,0.00013972,2]
[329874788,1718779858800,-429.84955521,0.00013972,2]
[329874789,1718779858809,-500.0,0.00013972,2]
[329874790,1718779858819,-500.0,0.00013972,2]
[329874791,1718779858829,-1089.08,0.00013972,2]
[329874792,1718779858838,-203.0107093,0.00013972,2]
[329874793,1718779858847,-1557.41,0.00013972,2]
[329874794,1718779858857,-590.5,0.00013972,2]
[329874795,1718779858866,-892.95,0.00013972,2]
[329874796,1718779858875,-500.0,0.00013972,2]
[329874797,1718779858886,-500.0,0.00013972,2]
[329874798,1718779858895,-870.63,0.00013972,2]
[329874799,1718779858904,-1624.87,0.00013972,2]
[329874800,1718779858914,-877.95,0.00013972,2]
[329874801,1718779858923,-500.0,0.00013972,2]
[329874802,1718779858933,-1132.36,0.00013972,2]
[329874803,1718779858942,-500.0,0.00013972,2]
[329874804,1718779858951,-500.0,0.00013972,2]
[329874805,1718779858961,-500.0,0.00013972,2]
[329874806,1718779858971,-1580.56,0.00013972,2]
[329874807,1718779858980,-500.0,0.00013972,2]
[329874808,1718779858989,-500.0,0.00013972,2]
[329874809,1718779858999,-1169.37,0.00013972,2]
[329874810,1718779859008,-1998.13,0.00013972,2]
[329874811,1718779859018,-500.0,0.00013972,2]
[329874812,1718779859027,-500.0,0.00013972,2]
[329874813,1718779859037,-500.0,0.00013972,2]
[329874814,1718779859046,-2269.77,0.00013972,2]
[329874815,1718779859056,-822.21,0.00013972,2]
[329874816,1718779859065,-2701.54,0.00013972,2]
[329874817,1718779859075,-1141.62,0.00013972,2]
[329874818,1718779859084,-2014.95,0.00013972,2]
[329874819,1718779859093,-500.0,0.00013972,2]
[329874820,1718779859104,-1585.71,0.00013972,2]
[329874821,1718779859113,-506.06,0.00013972,2]
[329874822,1718779859122,-664.51,0.00013972,2]
[329874823,1718779859133,-500.0,0.00013972,2]
[329874824,1718779859142,-500.0,0.00013972,2]
[329874825,1718779859151,-500.0,0.00013972,2]
[329874826,1718779859160,-500.0,0.00013972,2]
[329874827,1718779859170,-527.41470097,0.00013972,2]
[329874828,1718779859179,-913.12,0.00013972,2]
[329874829,1718779859192,-500.0,0.00013972,2]
[329874830,1718779859202,-1075.03,0.00013972,2]
[329874831,1718779859212,-1586.48,0.00013972,2]
[329874832,1718779859222,-720.3,0.00013972,2]